bitfinex-derivatives/quotes_BNBF0:USTF0_20241231
["timestamp","ask_amount","ask_price","bid_price","bid_amount"]
[1735613851851,0.28338646,705.75,704.64,1.0486165]
[1735613853150,0.28338646,705.75,704.67,1.0486165]
[1735613854463,0.28338646,705.75,704.65,1.0486165]
[1735613856265,0.28338646,705.75,704.64,1.0486165]
[1735613858165,0.28338646,705.75,704.65,0.28382885]
[1735613858367,0.28338646,705.75,704.68,1.0486165]
[1735613858866,1.47996413,706.1,704.69,0.28381274]
[1735613860268,1.05749373,706.31,704.69,0.28381274]
[1735613860565,1.47980156,706.2,704.69,0.28381274]
[1735613860866,0.28316178,706.31,704.69,0.28381274]
[1735613861068,1.47974388,706.2,704.69,0.28381274]
[1735613861264,0.28316178,706.31,704.69,0.28381274]
[1735613861463,0.26071467,706.3,704.79,1.0486165]
[1735613862266,0.28316178,706.31,704.79,1.0486165]
[1735613862466,1.47962853,706.29,704.73,1.0486165]
[1735613863565,1.47962853,706.29,704.69,0.28381274]
[1735613866365,0.26071671,706.28,704.69,0.28381274]
[1735613867065,1.47962853,706.29,704.69,0.28381274]
[1735613868568,0.28316178,706.31,704.69,0.28381274]
[1735613868767,1.47963902,706.29,704.69,0.28381274]
[1735613869071,0.28316178,706.31,704.69,0.28381274]
[1735613883381,0.28316178,706.31,704.69,1.33242924]
[1735613884285,0.28316178,706.31,704.73,1.0486165]
[1735613885386,0.28316178,706.31,704.84,1.0486165]
[1735613885882,0.28316178,706.31,704.86,0.28374428]
[1735613888787,0.28316178,706.31,704.95,1.0486165]
[1735613889287,0.28316178,706.31,704.97,0.28370001]
[1735613889889,1.47914113,706.57,704.97,0.28370001]
[1735613890287,1.05749373,706.88,704.97,0.28370001]
[1735613890482,1.47899445,706.67,704.97,0.28370001]
[1735613890788,0.26056771,706.66,704.97,0.28370001]
[1735613890988,0.26056771,706.65,704.97,0.28370001]
[1735613891289,0.26056771,706.64,705.01,1.0486165]
[1735613891487,0.26056771,706.63,705.01,1.0486165]
[1735613891688,0.26056771,706.62,705.01,1.0486165]
[1735613891989,1.47894207,706.67,705.03,0.28367587]
[1735613892291,0.26056731,706.66,705.03,0.28367587]
[1735613893287,1.47894207,706.67,705.03,0.28367587]
[1735613893487,0.26058029,706.66,705.03,0.28367587]
[1735613893984,1.47894207,706.67,705.03,0.28367587]
[1735613894491,0.26057142,706.66,705.03,0.28367587]
[1735613894687,0.26057142,706.66,705.07,1.0486165]
[1735613894988,0.26057142,706.66,705.09,0.28365173]
[1735613896085,0.26057142,706.66,705.12,1.0486165]
[1735613896390,0.26056976,706.65,705.14,0.28363161]
[1735613896589,0.26056976,706.64,705.14,0.28363161]
[1735613896787,0.26056976,706.63,705.14,0.28363161]
[1735613897090,0.26056976,706.62,705.14,0.28363161]
[1735613897390,1.47894207,706.67,705.14,0.28363161]
[1735613897690,0.26056588,706.66,705.14,0.28363161]
[1735613899888,0.28302554,706.65,705.14,0.28363161]
[1735613900189,0.26056588,706.64,705.14,0.28363161]
[1735613900892,0.28303355,706.63,705.14,0.28363161]
[1735613901087,0.26056588,706.62,705.14,0.28363161]
[1735613901294,0.28303355,706.63,705.14,0.28363161]
[1735613901496,0.26059299,706.62,705.14,0.28363161]
[1735613901988,0.28303355,706.63,705.14,0.28363161]
[1735613902189,0.26058668,706.62,705.14,0.28363161]
[1735613904296,0.26058633,706.61,705.14,0.28363161]
[1735613904594,0.26058633,706.6,705.14,0.28363161]
[1735613904792,0.26058633,706.59,705.14,0.28363161]
[1735613904994,0.26058633,706.58,705.14,0.28363161]
[1735613905193,0.26058633,706.57,705.14,0.28363161]
[1735613906499,0.26058633,706.57,705.16,1.0486165]
[1735613906795,0.26058782,706.56,705.16,1.0486165]
[1735613906995,0.26058782,706.55,705.16,1.0486165]
[1735613907197,0.26058782,706.54,705.16,1.0486165]
[1735613907398,0.26058782,706.53,705.16,1.0486165]
[1735613907697,0.26058782,706.52,705.2,1.0486165]
[1735613907893,1.47900493,706.58,705.2,1.0486165]
[1735613908092,0.26058577,706.57,705.2,1.0486165]
[1735613908896,0.26058577,706.57,705.23,1.0486165]
[1735613910199,0.26058658,706.56,705.23,1.0486165]
[1735613910400,1.47900493,706.58,705.23,1.0486165]
[1735613910401,0.26058658,706.55,705.23,1.0486165]
[1735613910594,0.26058658,706.54,705.23,1.0486165]
[1735613910793,0.26058658,706.53,705.23,1.0486165]
[1735613911000,1.47900493,706.58,705.23,1.0486165]
[1735613911199,0.26059168,706.57,705.23,1.0486165]
[1735613911599,0.26059168,706.57,705.26,1.0486165]
[1735613912200,0.2605903,706.56,705.26,1.0486165]
[1735613912401,0.2605903,706.55,705.26,1.0486165]
[1735613912602,1.47900493,706.58,705.29,1.0486165]
[1735613912803,0.2605903,706.57,705.29,1.0486165]
[1735613913703,0.2605903,706.57,705.32,1.0486165]
[1735613913907,1.47900493,706.58,705.32,1.0486165]
[1735613914109,0.26061584,706.57,705.32,1.0486165]
[1735613914313,0.28306159,706.56,705.32,1.0486165]
[1735613914509,0.26065844,706.55,705.32,1.0486165]
[1735613914714,0.26061584,706.57,705.14,0.28363161]
[1735613914715,0.54374662,706.54,705.14,0.28363161]
[1735613914915,0.26067702,706.53,705.14,0.28363161]
[1735613916014,1.05749373,706.51,705.14,0.28363161]
[1735613916312,0.28308563,706.5,705.14,0.28363161]
[1735613916512,0.26067542,706.49,705.14,0.28363161]
[1735613916712,0.28309364,706.48,705.14,0.28363161]
[1735613918517,0.26067199,706.47,705.14,0.28363161]
[1735613918916,0.28309364,706.48,705.14,0.28363161]
[1735613923215,0.26066588,706.47,705.14,0.28363161]
[1735613923515,0.28310166,706.46,705.14,0.28363161]
[1735613923713,0.26066588,706.45,705.14,0.28363161]
[1735613924314,0.28310166,706.46,705.14,0.28363161]
[1735613924718,0.26066545,706.45,705.14,0.28363161]
[1735613925315,0.26066876,706.44,705.14,0.28363161]
[1735613925517,0.26066876,706.43,705.14,0.28363161]
[1735613925819,0.26066876,706.42,705.14,0.28363161]
[1735613926019,0.26066876,706.41,705.14,0.28363161]
[1735613926213,0.26066876,706.4,705.14,0.28363161]
[1735613926519,0.26067912,706.39,705.14,0.28363161]
[1735613926720,0.26067912,706.38,705.14,0.28363161]
[1735613927020,0.26067912,706.37,705.14,0.28363161]
[1735613927319,1.47940314,706.38,705.14,0.28363161]
[1735613927522,0.26072233,706.37,705.14,0.28363161]
[1735613927819,0.28314174,706.36,705.14,0.28363161]
[1735613933122,0.26071221,706.35,705.14,0.28363161]
[1735613934024,0.26071259,706.34,705.14,0.28363161]
[1735613934221,0.26071259,706.33,705.14,0.28363161]
[1735613935923,0.28314975,706.34,705.14,0.28363161]
[1735613936120,0.26070651,706.33,705.14,0.28363161]
[1735613937728,0.28314975,706.34,705.14,0.28363161]
[1735613941430,0.28314975,706.34,705.16,1.0486165]
[1735613941729,0.28314975,706.34,705.17,0.28361955]
[1735613942032,1.47893684,706.58,705.17,0.28361955]
[1735613944034,1.47893684,706.58,705.2,1.0486165]
[1735613944434,1.47893684,706.58,705.21,0.28360346]
[1735613945127,1.05749373,706.83,705.21,0.28360346]
[1735613945329,1.47880067,706.69,705.21,0.28360346]
[1735613945529,0.28295747,706.82,705.21,0.28360346]
[1735613945733,1.47873783,706.68,705.21,0.28360346]
[1735613946129,0.28295747,706.82,705.21,0.28360346]
[1735613946327,0.26053957,706.81,705.25,1.0486165]
[1735613947335,1.47863835,706.8,705.22,1.0486165]
[1735613947726,0.26054657,706.79,705.22,1.0486165]
[1735613948136,1.47863835,706.8,705.23,0.28359542]
[1735613948430,0.54351842,706.79,705.23,0.28359542]
[1735613948635,0.28296948,706.79,705.23,0.28359542]
[1735613951432,0.26054727,706.78,705.23,0.28359542]
[1735613952537,0.26054727,706.78,705.23,1.33221192]
[1735613954432,0.28296948,706.79,705.23,1.33221192]
[1735613954738,0.26055064,706.78,705.23,0.28359542]
[1735613956234,0.26055018,706.77,705.23,0.28359542]
[1735613956437,0.26055018,706.76,705.23,0.28359542]
[1735613956638,0.26055018,706.75,705.23,0.28359542]
[1735613956833,0.26055018,706.74,705.23,0.28359542]
[1735613957035,0.28296948,706.79,705.23,0.28359542]
[1735613958144,0.26059096,706.78,705.23,0.28359542]
[1735613958940,0.28296948,706.79,705.23,0.28359542]
[1735613959139,0.26059067,706.78,705.23,0.28359542]
[1735613961545,0.26062109,706.77,705.23,0.28359542]
[1735613961741,0.26062109,706.76,705.23,0.28359542]
[1735613961941,0.26062109,706.75,705.23,0.28359542]
[1735613962141,0.54361059,706.74,705.23,0.28359542]
[1735613962339,0.26062109,706.73,705.23,0.28359542]
[1735613962943,1.76201291,706.72,705.23,0.28359542]
[1735613963137,0.5436226,706.71,705.23,0.28359542]
[1735613963342,0.26062109,706.7,705.23,0.28359542]
[1735613964040,0.54363708,706.69,705.23,0.28359542]
[1735613964244,0.54364108,706.68,705.23,0.28359542]
[1735613964448,0.54364509,706.67,705.23,0.28359542]
[1735613964746,1.47901541,706.72,705.23,0.28359542]
[1735613964747,0.54364909,706.66,705.23,0.28359542]
[1735613964946,0.5436531,706.65,705.23,0.28359542]
[1735613965148,0.26062756,706.64,705.23,0.28359542]
[1735613965446,0.28303355,706.63,705.23,0.28359542]
[1735613965741,0.26062756,706.62,705.23,0.28359542]
[1735613965944,0.28304156,706.61,705.23,0.28359542]
[1735613966145,0.26062756,706.6,705.23,0.28359542]
[1735613966342,0.28304957,706.59,705.23,0.28359542]
[1735613966545,0.26062756,706.58,705.23,0.28359542]
[1735613966745,0.28304957,706.59,705.23,0.28359542]
[1735613966941,0.26063766,706.58,705.23,0.28359542]
[1735613967849,0.28305758,706.57,705.23,0.28359542]
[1735613968042,0.26063766,706.56,705.23,0.28359542]
[1735613968240,0.2830656,706.55,705.23,0.28359542]
[1735613968445,0.26063766,706.54,705.23,0.28359542]
[1735613968644,0.28307361,706.53,705.23,0.28359542]
[1735613968844,0.26063766,706.52,705.23,0.28359542]
[1735613969048,0.28307361,706.53,705.23,0.28359542]
[1735613969549,0.26060858,706.52,705.23,0.28359542]
[1735613969747,0.26061244,706.51,705.23,0.28359542]
[1735613970046,0.28307361,706.53,705.23,0.28359542]
[1735613970247,0.2606152,706.52,705.23,0.28359542]
[1735613970648,0.28307361,706.53,705.23,0.28359542]
[1735613970848,0.26060784,706.52,705.23,0.28359542]
[1735613972042,0.26061007,706.51,705.23,0.28359542]
[1735613972244,0.28307361,706.53,705.23,0.28359542]
[1735613973946,0.28307361,706.53,705.28,1.0486165]
[1735613975048,0.28307361,706.53,705.3,1.0486165]
[1735613975550,0.26060426,706.52,705.3,1.0486165]
[1735613975749,0.28307361,706.53,705.3,1.0486165]
[1735613976050,0.26060283,706.52,705.3,1.0486165]
[1735613976251,0.26060283,706.52,705.27,1.0486165]
[1735613976750,0.28307361,706.53,705.27,1.0486165]
[1735613977151,0.28307361,706.53,705.29,1.0486165]
[1735613978954,0.28307361,706.53,705.3,1.0486165]
[1735613979955,0.28307361,706.53,705.32,1.0486165]
[1735613980653,0.26060936,706.52,705.32,1.0486165]
[1735613980853,0.26061573,706.51,705.32,1.0486165]
[1735613981053,0.26061573,706.5,705.32,1.0486165]
[1735613981255,0.28307361,706.53,705.32,1.0486165]
[1735613981456,0.26061739,706.52,705.27,1.0486165]
[1735613982356,0.28307361,706.53,705.27,1.0486165]
[1735613983158,0.28307361,706.53,705.28,1.0486165]
[1735613983856,0.28307361,706.53,705.33,1.0486165]
[1735613985057,0.28307361,706.53,705.36,1.0486165]
[1735613986360,0.28307361,706.53,705.38,1.0486165]
[1735613987559,0.28307361,706.53,705.35,1.0486165]
[1735613988562,0.28307361,706.53,705.23,0.28359542]
[1735613988563,0.28307361,706.53,705.36,1.0486165]
[1735613989462,0.28307361,706.53,705.29,1.0486165]
[1735613990863,0.28307361,706.53,705.32,1.0486165]
[1735613992864,0.28307361,706.53,705.31,1.0486165]
[1735613993773,0.28307361,706.53,705.23,0.28359542]
[1735614000269,0.28307361,706.53,705.23,1.33221192]
[1735614001480,0.28307361,706.53,705.3,1.0486165]
[1735614002777,0.28307361,706.53,705.41,1.0486165]
[1735614004191,0.28307361,706.53,705.4,1.0486165]
[1735614005177,1.05749373,706.52,705.4,1.0486165]
[1735614006176,1.34056734,706.53,705.41,1.0486165]
[1735614007277,1.05749373,706.5,705.36,1.0486165]
[1735614008277,0.28307361,706.53,705.42,1.0486165]
[1735614009285,0.28307361,706.53,705.43,1.0486165]
[1735614010283,1.34056734,706.53,705.39,1.0486165]
[1735614011185,1.34056734,706.53,705.29,1.0486165]
[1735614011186,0.28307361,706.53,705.43,1.0486165]
[1735614012486,1.05749373,706.52,705.4,1.0486165]
[1735614013186,1.34056734,706.53,705.41,1.0486165]
[1735614014282,0.28307361,706.53,705.46,1.0486165]
[1735614015391,0.28307361,706.53,705.45,1.0486165]
[1735614015392,1.34056734,706.53,705.45,1.0486165]
[1735614016592,0.28307361,706.53,705.45,1.0486165]
[1735614018091,0.28307361,706.53,705.46,1.0486165]
[1735614019093,0.28307361,706.53,705.45,1.0486165]
[1735614019888,0.28307361,706.53,705.23,0.28359542]
[1735614019889,0.2606061,706.52,705.41,1.0486165]
[1735614021098,1.05749373,706.44,705.33,1.0486165]
[1735614022297,1.47899445,706.47,705.35,1.0486165]
[1735614022596,1.05749373,706.48,705.35,1.0486165]
[1735614023497,1.05749373,706.48,705.36,0.28354315]
[1735614023791,1.05749373,707.09,705.36,0.28354315]
[1735614024198,1.46836241,706.94,705.36,0.28354315]
[1735614024393,1.05749373,707.09,705.36,0.28354315]
[1735614024599,1.47855459,706.94,705.36,0.28354315]
[1735614024796,1.05749373,707.38,705.36,0.28354315]
[1735614025498,0.26044699,707.37,705.36,0.28354315]
[1735614025894,0.26044699,707.36,705.36,0.28354315]
[1735614026095,0.26044699,707.35,705.36,0.28354315]
[1735614027100,0.26044221,707.34,705.36,0.28354315]
[1735614027403,0.26044221,707.33,705.36,0.28354315]
[1735614027602,0.26044221,707.32,705.36,0.28354315]
[1735614027804,0.26044616,707.31,705.36,0.28354315]
[1735614028104,0.26044616,707.3,705.39,1.0486165]
[1735614028305,0.26044616,707.29,705.39,1.0486165]
[1735614028499,0.26044616,707.28,705.39,1.0486165]
[1735614028702,0.26044616,707.27,705.39,1.0486165]
[1735614028903,0.26044616,707.26,705.36,0.28354315]
[1735614029104,0.26044616,707.25,705.36,0.28354315]
[1735614029299,1.47804697,707.36,705.36,0.28354315]
[1735614029300,0.26044616,707.24,705.36,0.28354315]
[1735614029504,0.54323959,707.23,705.36,0.28354315]
[1735614029706,0.54324359,707.22,705.36,0.28354315]
[1735614030006,0.54324759,707.21,705.36,0.28354315]
[1735614030207,0.54325158,707.2,705.36,0.28354315]
[1735614030406,0.26044616,707.19,705.36,0.28354315]
[1735614030901,0.28281742,707.17,705.36,0.28354315]
[1735614031103,0.26044616,707.16,705.36,0.28354315]
[1735614031306,0.28282942,707.14,705.36,0.28354315]
[1735614031500,0.26044616,707.13,705.36,0.28354315]
[1735614031699,0.28284142,707.11,705.36,0.28354315]
[1735614031901,0.26044616,707.1,705.36,0.28354315]
[1735614032104,0.28285342,707.08,705.36,0.28354315]
[1735614032609,0.26049027,707.07,705.36,0.28354315]
[1735614032810,0.28286142,707.06,705.36,0.28354315]
[1735614033009,0.26049027,707.05,705.36,0.28354315]
[1735614033405,0.28286942,707.04,705.36,0.28354315]
[1735614033607,0.26049027,707.03,705.36,0.28354315]
[1735614033906,0.28287742,707.02,705.36,0.28354315]
[1735614034108,0.26049027,707.01,705.36,0.28354315]
[1735614034414,0.28288543,707.0,705.37,1.0486165]
[1735614034706,0.26049027,706.99,705.38,0.28353511]
[1735614034904,0.28289343,706.98,705.38,0.28353511]
[1735614035105,0.26048808,706.97,705.38,0.28353511]
[1735614035808,0.54338751,706.96,705.38,0.28353511]
[1735614036006,0.54339151,706.95,705.38,0.28353511]
[1735614036209,0.54339552,706.94,705.38,0.28353511]
[1735614036406,0.28290944,706.94,705.38,0.28353511]
[1735614040819,0.28290944,706.94,705.38,1.33215161]
[1735614041918,0.28290944,706.94,705.38,0.28353511]
[1735614054327,0.28290944,706.94,705.38,0.27918318]
[1735614057124,0.26050885,706.93,705.38,0.27918318]
[1735614057323,0.28290944,706.94,705.46,1.0486165]
[1735614058631,0.28290944,706.94,705.51,1.0486165]
[1735614059132,0.26051635,706.93,705.51,1.0486165]
[1735614059633,0.26051635,706.93,705.48,1.0486165]
[1735614060530,0.26051635,706.93,705.52,1.0486165]
[1735614060531,1.05749373,706.85,705.52,1.0486165]
[1735614061230,1.47837662,706.84,705.52,1.0486165]
[1735614061635,1.47837662,706.84,705.45,1.0486165]
[1735614061828,1.47837662,706.84,705.46,0.28350296]
[1735614064040,0.28295346,706.83,705.46,0.28350296]
[1735614066140,0.2605758,706.82,705.46,0.28350296]
[1735614066441,0.28296147,706.81,705.46,0.28350296]
[1735614066642,0.26057831,706.8,705.46,0.28350296]
[1735614067640,1.05749373,706.76,705.46,0.28350296]
[1735614067942,0.26057831,706.75,705.46,0.28350296]
[1735614068642,0.5435638,706.75,705.46,0.28350296]
[1735614068942,0.26058528,706.74,705.46,0.28350296]
[1735614069242,0.2829935,706.73,705.46,0.28350296]
[1735614069541,0.26058528,706.72,705.46,0.28350296]
[1735614069943,0.28300151,706.71,705.46,0.28350296]
[1735614070138,0.26058528,706.7,705.46,0.28350296]
[1735614071446,1.47886351,706.69,705.46,0.28350296]
[1735614073339,0.28301352,706.68,705.46,0.28350296]
[1735614074644,0.26058077,706.67,705.46,0.28350296]
[1735614074845,0.28301352,706.68,705.46,0.28350296]
[1735614075242,0.26058465,706.67,705.46,0.28350296]
[1735614076440,0.26058465,706.67,705.18,1.0486165]
[1735614076645,0.26064802,706.66,705.18,1.0486165]
[1735614076846,0.26064802,706.65,705.08,1.0486165]
[1735614077146,0.26064802,706.64,705.08,1.0486165]
[1735614077345,0.26064802,706.63,705.08,1.0486165]
[1735614077544,0.26064802,706.67,705.09,0.28365173]
[1735614077740,0.26064802,706.66,705.09,0.28365173]
[1735614077941,0.26064802,706.65,705.09,0.28365173]
[1735614078147,0.26064802,706.64,705.09,0.28365173]
[1735614078346,0.26064802,706.63,705.09,0.28365173]
[1735614078547,0.26064802,706.62,705.09,0.28365173]
[1735614078849,0.26064802,706.61,705.09,0.28365173]
[1735614079044,0.26064802,706.6,705.09,0.28365173]
[1735614079242,0.26065097,706.59,705.09,0.28365173]
[1735614079547,0.26065097,706.58,705.09,0.28365173]
[1735614079747,0.26065097,706.57,705.09,0.28365173]
[1735614079941,0.26065097,706.56,705.09,0.28365173]
[1735614080141,0.26065097,706.55,705.09,0.28365173]
[1735614080342,0.26065097,706.54,705.09,0.28365173]
[1735614080546,0.26065097,706.53,705.09,0.28365173]
[1735614080746,0.26065097,706.52,705.09,0.28365173]
[1735614081047,0.28301352,706.68,705.09,0.28365173]
[1735614081243,0.26064796,706.67,705.09,0.28365173]
[1735614082545,0.28301352,706.68,705.09,0.28365173]
[1735614082743,0.26065015,706.67,705.09,0.28365173]
[1735614084548,0.28301352,706.68,705.09,0.28365173]
[1735614084549,0.26070066,706.66,705.09,0.28365173]
[1735614084748,0.26070066,706.65,705.09,0.28365173]
[1735614084949,0.26070066,706.64,705.09,0.28365173]
[1735614085148,0.26070066,706.63,705.09,0.28365173]
[1735614085350,0.26070066,706.62,705.09,0.28365173]
[1735614085650,0.26070066,706.61,705.09,0.28365173]
[1735614085953,0.26070066,706.6,705.09,0.28365173]
[1735614087149,0.26072607,706.59,705.09,0.28365173]
[1735614087350,0.26072607,706.58,705.09,0.28365173]
[1735614087547,0.26072607,706.57,705.09,0.28365173]
[1735614087753,0.26072607,706.56,705.09,0.28365173]
[1735614088053,0.26072607,706.55,705.09,0.28365173]
[1735614088353,0.26072607,706.54,705.09,0.28365173]
[1735614088651,0.26072607,706.53,705.09,0.28365173]
[1735614088852,0.26072607,706.52,705.09,0.28365173]
[1735614089056,0.26072607,706.51,705.09,0.28365173]
[1735614089355,0.26072607,706.5,705.09,0.28365173]
[1735614089552,0.26072607,706.49,704.43,1.0486165]
[1735614089748,0.2607944,706.48,704.45,0.28390943]
[1735614089951,0.2607944,706.47,704.45,0.28390943]
[1735614090251,0.2607944,706.46,704.45,0.28390943]
[1735614090447,0.26083436,706.45,704.45,0.28390943]
[1735614090651,0.26083436,706.44,704.45,0.28390943]
[1735614090951,0.26083436,706.43,704.45,0.28390943]
[1735614091147,0.26083436,706.42,704.45,0.28390943]
[1735614091353,1.05749373,706.38,704.45,0.28390943]
[1735614091547,0.26083436,706.37,704.45,0.28390943]
[1735614092860,0.26083436,706.36,704.45,0.28390943]
[1735614093051,0.26083436,706.35,704.45,0.28390943]
[1735614093351,0.26083436,706.34,704.45,0.28390943]
[1735614093550,0.26083436,706.33,704.45,0.28390943]
[1735614093749,0.26083436,706.32,704.45,0.28390943]
[1735614093948,0.26083436,706.31,704.45,0.28390943]
[1735614094148,1.05749373,706.55,704.45,0.28390943]
[1735614094149,0.26083436,706.3,704.45,0.28390943]
[1735614094346,0.26083436,706.29,704.45,0.28390943]
[1735614094550,0.26083436,706.28,704.45,0.28390943]
[1735614094750,0.26083436,706.27,704.45,0.28390943]
[1735614094948,0.2608721,706.26,704.45,0.28390943]
[1735614095149,0.2608721,706.25,704.45,0.28390943]
[1735614095350,0.2608721,706.24,704.45,0.28390943]
[1735614095552,0.2608721,706.23,704.45,0.28390943]
[1735614095751,0.2608721,706.22,704.45,0.28390943]
[1735614095953,0.2608721,706.21,704.45,0.28390943]
[1735614096149,0.2608721,706.2,704.45,0.28390943]
[1735614097052,0.2608721,706.19,704.45,0.28390943]
[1735614097252,0.2608721,706.18,704.45,0.28390943]
[1735614097450,0.2608721,706.17,704.45,0.28390943]
[1735614097657,0.2608721,706.16,704.45,0.28390943]
[1735614097858,0.2608721,706.15,704.45,0.28390943]
[1735614098157,1.48066729,706.21,704.45,0.28390943]
[1735614098351,0.26089614,706.2,704.45,0.28390943]
[1735614098557,0.26089614,706.19,704.45,0.28390943]
[1735614098757,0.26089614,706.18,704.45,0.28390943]
[1735614098950,0.26089614,706.17,704.45,0.28390943]
[1735614099151,0.26089614,706.16,704.45,0.28390943]
[1735614099353,0.26089614,706.15,704.45,0.28390943]
[1735614099658,0.26089614,706.14,704.45,0.28390943]
[1735614099859,1.48066729,706.21,704.45,0.28390943]
[1735614099860,0.26089614,706.13,704.45,0.28390943]
[1735614100060,0.26089614,706.12,704.45,0.28390943]
[1735614100256,0.26089614,706.11,704.45,0.28390943]
[1735614100560,0.26089614,706.1,704.45,0.28390943]
[1735614100755,0.26089614,706.09,704.45,0.28390943]
[1735614100959,0.26089614,706.08,704.45,0.28390943]
[1735614101155,1.48066729,706.21,704.45,0.28390943]
[1735614101156,0.26089614,706.07,704.45,0.28390943]
[1735614101361,0.26089614,706.06,704.45,0.28390943]
[1735614101561,0.26089614,706.05,704.45,0.28390943]
[1735614101763,0.26089614,706.04,704.45,0.28390943]
[1735614101958,0.26089614,706.03,704.45,0.28390943]
[1735614102264,0.26089614,706.02,704.45,0.28390943]
[1735614102462,1.48066729,706.21,704.45,0.28390943]
[1735614102463,0.26089614,706.01,704.45,0.28390943]
[1735614102764,0.26089614,706.0,704.45,0.28390943]
[1735614103064,0.26089614,705.99,704.45,0.28390943]
[1735614103266,0.26089614,705.98,704.45,0.28390943]
[1735614103464,0.26089614,705.97,704.45,0.28390943]
[1735614103665,0.26089614,705.96,704.45,0.28390943]
[1735614103859,0.26089614,705.95,704.45,0.28390943]
[1735614104069,0.26089614,705.94,704.45,0.28390943]
[1735614104266,0.26089614,705.93,704.45,0.28390943]
[1735614104461,0.26089614,705.92,704.45,0.28390943]
[1735614104664,0.26089614,705.91,704.45,0.28390943]
[1735614104865,0.26089614,705.9,704.45,0.28390943]
[1735614105066,0.26089614,705.89,704.45,0.28390943]
[1735614105366,1.48066729,706.21,704.45,0.28390943]
[1735614105567,0.26092386,706.2,704.45,0.28390943]
[1735614105769,0.26092386,706.19,704.45,0.28390943]
[1735614105960,0.26092386,706.18,704.45,0.28390943]
[1735614106268,0.26093181,706.17,704.45,0.28390943]
[1735614106466,0.26093181,706.16,704.45,0.28390943]
[1735614106665,0.26093181,706.15,704.45,0.28390943]
[1735614106865,0.26093181,706.14,704.45,0.28390943]
[1735614107060,0.26093181,706.13,704.45,0.28390943]
[1735614107265,0.26093181,706.12,704.45,0.28390943]
[1735614107466,0.26093181,706.11,704.45,0.28390943]
[1735614107768,0.26093181,706.1,704.45,0.28390943]
[1735614107961,0.26093181,706.09,704.45,0.28390943]
[1735614108161,1.48105064,706.12,704.45,0.28390943]
[1735614108365,0.26094516,706.11,704.45,0.28390943]
[1735614108567,0.26094516,706.1,704.45,0.28390943]
[1735614108867,0.26094516,706.09,703.6,1.0486165]
[1735614109065,0.26094516,706.08,703.62,0.28424433]
[1735614109266,0.26094516,706.07,703.62,0.28424433]
[1735614109566,0.26094516,706.06,703.62,0.28424433]
[1735614109766,0.26094516,706.05,703.62,0.28424433]
[1735614109967,1.48105064,706.12,703.62,0.28424433]
[1735614109968,0.26094516,706.04,703.62,0.28424433]
[1735614110266,0.26094516,706.03,703.62,0.28424433]
[1735614110467,0.26094516,706.02,703.62,0.28424433]
[1735614110667,0.26094516,706.01,703.62,0.28424433]
[1735614110868,0.26103641,706.0,703.62,0.28424433]
[1735614111168,1.48105064,706.12,703.62,0.28424433]
[1735614111169,0.26103641,705.99,703.62,0.28424433]
[1735614111365,0.26103641,705.98,703.62,0.28424433]
[1735614111566,0.26103641,705.97,703.62,0.28424433]
[1735614111768,0.26103641,705.96,703.62,0.28424433]
[1735614112069,0.26103641,705.95,703.62,0.28424433]
[1735614112366,0.26103641,705.94,703.62,0.28424433]
[1735614112569,0.26103641,705.93,703.62,0.28424433]
[1735614112769,0.26103641,705.92,703.62,0.28424433]
[1735614112970,0.26103641,705.91,703.62,0.28424433]
[1735614113169,1.05749373,706.09,703.62,0.28424433]
[1735614113170,0.26103641,705.9,703.62,0.28424433]
[1735614113364,0.26102595,705.89,703.62,0.28424433]
[1735614113566,0.26102595,705.88,703.62,0.28424433]
[1735614113764,1.05749373,706.09,703.62,0.28424433]
[1735614114170,1.48105064,706.12,703.62,0.28424433]
[1735614115169,0.26099897,706.11,703.62,0.28424433]
[1735614115670,0.28329013,705.99,703.62,0.28424433]
[1735614115864,0.26099897,705.98,703.62,0.28424433]
[1735614116067,0.28333427,705.88,703.62,0.28424433]
[1735614116267,0.26099897,705.87,703.62,0.28424433]
[1735614117969,1.4816602,705.86,703.62,0.28424433]
[1735614118169,0.26099897,705.85,703.62,0.28424433]
[1735614118771,0.26100995,705.84,703.62,0.28424433]
[1735614118971,0.54436429,705.83,703.62,0.28424433]
[1735614119270,0.26100995,705.82,703.62,0.28424433]
[1735614120972,0.26100435,705.81,703.62,0.28424433]
[1735614121175,0.28335434,705.83,703.62,0.28424433]
[1735614121176,0.26100435,705.8,703.62,0.28424433]
[1735614121475,0.26100435,705.79,703.62,0.28424433]
[1735614121768,0.28335434,705.83,703.62,0.28424433]
[1735614121769,0.2609802,705.78,703.62,0.28424433]
[1735614121972,0.2609802,705.77,703.62,0.28424433]
[1735614122174,0.2609802,705.76,703.62,0.28424433]
[1735614122474,0.2609802,705.75,703.62,0.28424433]
[1735614122774,0.2609802,705.74,703.62,0.28424433]
[1735614122975,0.2609802,705.73,703.62,0.28424433]
[1735614123275,0.2609802,705.72,703.62,0.28424433]
[1735614123474,0.2609802,705.71,703.62,0.28424433]
[1735614123675,0.2609802,705.7,703.62,0.28424433]
[1735614123877,0.2609802,705.69,703.62,0.28424433]
[1735614124078,0.2609802,705.68,703.62,0.28424433]
[1735614124273,0.2609802,705.67,703.62,0.28424433]
[1735614124474,0.2609802,705.66,703.68,1.0486165]
[1735614124676,0.28335434,705.83,703.68,1.0486165]